bitfinex/quotes_BTCUSD_20251114
["timestamp","ask_amount","ask_price","bid_price","bid_amount"]
[1763102662826,0.00045766,96930.0,96929.0,0.02448923]
[1763102662956,0.00045766,96930.0,96929.0,0.00466333]
[1763102663156,0.00045766,96930.0,96929.0,0.00266333]
[1763102663568,0.0438764,96930.0,96929.0,0.00466333]
[1763102663769,0.0438764,96930.0,96929.0,0.00266333]
[1763102663955,0.0438764,96930.0,96929.0,0.00066333]
[1763102664366,0.0438764,96930.0,96929.0,0.00266333]
[1763102664901,0.0438764,96930.0,96929.0,0.00066333]
[1763102665103,0.78298651,96930.0,96929.0,0.00166333]
[1763102665484,0.78298651,96930.0,96929.0,0.00066333]
[1763102665684,0.80480685,96930.0,96929.0,0.00066333]
[1763102666096,0.77814285,96930.0,96929.0,0.00066333]
[1763102666347,0.66318451,96930.0,96929.0,0.00066333]
[1763102666913,0.66418451,96930.0,96929.0,0.00066333]
[1763102667693,0.66518451,96930.0,96929.0,0.00066333]
[1763102668148,0.66418451,96930.0,96929.0,0.00066333]
[1763102668329,0.53516851,96930.0,96929.0,0.00066333]
[1763102668508,0.21316851,96930.0,96929.0,0.00066333]
[1763102668713,0.16666851,96930.0,96929.0,0.00066333]
[1763102668911,0.56481951,96930.0,96929.0,0.00066333]
[1763102669151,0.06481951,96930.0,96929.0,0.00066333]
[1763102669393,0.06381951,96930.0,96929.0,0.00066333]
[1763102669554,0.06381951,96930.0,96850.0,0.2]
[1763102669555,0.06381951,96930.0,96869.0,0.01125]
[1763102669556,0.20646226,96870.0,96869.0,0.01125]
[1763102669774,0.249881,96870.0,96869.0,0.01125]
[1763102669995,0.01032098,96890.0,96878.0,0.01588]
[1763102670131,0.04341874,96883.0,96878.0,0.01588]
[1763102670333,0.24986182,96879.0,96878.0,0.01588]
[1763102670757,0.24986182,96879.0,96878.0,0.016017]
[1763102673077,0.24986182,96879.0,96878.0,0.000137]
[1763102678355,0.40146275,96890.0,96878.0,0.000137]
[1763102678356,0.02728485,96919.0,96895.0,0.02897]
[1763102678571,0.01893325,96918.0,96911.0,0.01243]
[1763102678805,0.01031672,96930.0,96911.0,0.01243]
[1763102678806,0.40145849,96930.0,96911.0,0.01243]
[1763102679034,0.40145849,96930.0,96895.0,0.01243]
[1763102679035,0.20638769,96905.0,96904.0,0.01243]
[1763102679243,0.20640686,96896.0,96895.0,0.01243]
[1763102679464,0.20643243,96884.0,96881.0,0.1006426]
[1763102679660,0.20643243,96884.0,96883.0,0.02269126]
[1763102680867,0.20643243,96884.0,96883.0,0.02369126]
[1763102681315,0.20643243,96884.0,96883.0,0.02469126]
[1763102683231,0.01072,96897.0,96883.0,0.02469126]
[1763102683432,0.01031885,96910.0,96896.0,0.1171826]
[1763102683773,0.20640473,96897.0,96896.0,0.1006426]
[1763102684047,0.2064011,96899.0,96896.0,0.1006426]
[1763102684255,0.20640473,96897.0,96896.0,0.1006426]
[1763102684684,0.2064011,96899.0,96896.0,0.1006426]
[1763102684685,0.04341874,96919.0,96905.0,0.01654]
[1763102684818,0.2064026,96898.0,96896.0,0.1006426]
[1763102685439,0.2064026,96898.0,96897.0,0.02496]
[1763102685645,0.20638917,96905.0,96860.0,0.04495998]
[1763102685646,0.20643882,96881.0,96860.0,0.04495998]
[1763102685846,0.20643882,96881.0,96850.0,0.1006426]
[1763102685847,0.20646013,96871.0,96870.0,0.1006426]
[1763102686964,0.20646013,96871.0,96870.0,0.1007796]
[1763102687168,0.20646013,96871.0,96870.0,0.11547856]
[1763102687614,0.20646013,96871.0,96870.0,0.1027796]
[1763102688122,0.20646013,96871.0,96870.0,0.002137]
[1763102688650,0.26554887,96871.0,96870.0,0.002137]
[1763102688846,0.26554887,96871.0,96870.0,0.001137]
[1763102689603,0.26554887,96871.0,96870.0,0.000137]
[1763102691840,1.67415687,96871.0,96870.0,0.000137]
[1763102691996,1.65284487,96871.0,96870.0,0.000137]
[1763102692201,1.59975487,96871.0,96870.0,0.000137]
[1763102693101,0.25187887,96871.0,96870.0,0.000137]
[1763102693319,0.39825687,96871.0,96870.0,0.000137]
[1763102701030,0.41724805,96871.0,96870.0,0.000137]
[1763102702081,0.38258687,96871.0,96870.0,0.000137]
[1763102702285,0.20846013,96871.0,96870.0,0.000137]
[1763102702660,0.20846013,96871.0,96870.0,0.023827]
[1763102702884,0.002,96871.0,96870.0,0.023827]
[1763102703407,0.002,96871.0,96870.0,0.04808032]
[1763102703659,0.01031991,96900.0,96881.0,0.20643882]
[1763102703895,0.20640473,96897.0,96883.0,0.1006426]
[1763102704259,0.20640047,96899.0,96870.0,0.19009032]
[1763102704260,0.20645301,96875.0,96873.0,0.01223]
[1763102704950,0.20645301,96875.0,96870.0,0.000137]
[1763102704951,0.20646013,96871.0,96870.0,0.000137]
[1763102705514,0.20645933,96872.0,96870.0,0.000137]
[1763102706918,0.20645933,96872.0,96870.0,0.023827]
[1763102707119,0.20645933,96872.0,96870.0,0.024827]
[1763102707318,0.20645495,96874.0,96870.0,0.024827]
[1763102707773,0.20645909,96872.0,96871.0,0.01555766]
[1763102709246,0.20645909,96872.0,96870.0,0.000137]
[1763102710161,0.20645909,96872.0,96871.0,0.001]
[1763102710413,0.20645909,96872.0,96870.0,0.000137]
[1763102710778,0.20645909,96872.0,96870.0,0.001137]
[1763102710979,0.20645909,96872.0,96870.0,0.000137]
[1763102711810,0.20644095,96880.0,96879.0,0.01597]
[1763102712026,0.24985969,96880.0,96879.0,0.01597]
[1763102712225,0.20644095,96880.0,96879.0,0.01597]
[1763102712912,0.20644095,96880.0,96872.0,0.206458]
[1763102713123,0.01031885,96910.0,96879.0,0.01597]
[1763102713313,0.20641558,96892.0,96890.0,0.01172]
[1763102713440,0.20641752,96891.0,96890.0,0.01172]
[1763102713637,0.20641008,96895.0,96890.0,0.01172]
[1763102713638,0.20641419,96893.0,96891.0,0.02483]
[1763102714060,0.20641468,96893.0,96891.0,0.02483]
[1763102715170,0.20642604,96887.0,96886.0,0.01172]
[1763102715339,0.20641807,96891.0,96886.0,0.01172]
[1763102715561,0.01031991,96900.0,96890.0,0.1006426]
[1763102715562,0.20641386,96893.0,96890.0,0.1006426]
[1763102715971,0.01031991,96900.0,96891.0,0.02483]
[1763102715972,0.20640686,96896.0,96891.0,0.02483]
[1763102716600,0.20640569,96897.0,96891.0,0.02483]
[1763102716878,0.20641373,96893.0,96891.0,0.02483]
[1763102717074,0.20641373,96893.0,96892.0,0.01600086]
[1763102718485,0.20590287,96893.0,96892.0,0.01600086]
[1763102719089,0.20641103,96895.0,96892.0,0.01600086]
[1763102719443,0.20641112,96894.0,96893.0,0.02483]
[1763102721972,0.20642817,96888.0,96873.0,0.07902364]
[1763102722175,0.01031885,96910.0,96896.0,0.1006426]
[1763102722176,0.20640115,96899.0,96896.0,0.1006426]
[1763102722378,0.20640076,96899.0,96896.0,0.1006426]
[1763102722576,0.20640119,96899.0,96896.0,0.1006426]
[1763102722758,0.20640473,96897.0,96896.0,0.1006426]
[1763102722961,0.20640473,96897.0,96896.0,0.15199016]
[1763102723177,0.20640473,96897.0,96896.0,0.1006426]
[1763102723577,0.20641325,96893.0,96892.0,0.02483]
[1763102723781,0.20642391,96888.0,96887.0,0.01172]
[1763102723982,0.20637739,96910.0,96888.0,0.02483]
[1763102724188,0.20638131,96908.0,96907.0,0.01172]
[1763102724530,0.20640473,96897.0,96896.0,0.001]
[1763102724738,0.20642178,96889.0,96888.0,0.02483]
[1763102724910,0.20642178,96889.0,96888.0,0.03854926]
[1763102725268,0.20642178,96889.0,96888.0,0.01371926]
[1763102726248,0.20641573,96892.0,96889.0,0.02483]
[1763102726626,0.04341874,96902.0,96898.0,0.01597]
[1763102726858,0.20641965,96890.0,96889.0,0.02483]
[1763102727062,0.20641965,96890.0,96889.0,0.04002119]
[1763102727488,0.04341874,96889.0,96888.0,0.001]
[1763102727699,0.57581574,96889.0,96888.0,0.001]
[1763102728108,0.24988527,96868.0,96865.0,0.01223]
[1763102728322,0.2064536,96875.0,96867.0,0.012367]
[1763102728530,0.04341874,96889.0,96888.0,0.01172]
[1763102728738,0.24984052,96889.0,96888.0,0.01172]
[1763102728960,0.20645161,96875.0,96874.0,0.1006426]
[1763102729710,0.20645161,96875.0,96868.0,0.02310762]
[1763102729711,0.2064644,96869.0,96868.0,0.02310762]
[1763102729914,0.04341874,96868.0,96867.0,0.000137]
[1763102730315,0.05411874,96868.0,96867.0,0.000137]
[1763102731135,0.05411874,96868.0,96867.0,0.001137]
[1763102731605,0.04341874,96868.0,96867.0,0.000137]
[1763102732752,0.04341874,96868.0,96867.0,0.001137]
[1763102733164,0.04341874,96868.0,96867.0,0.024747]
[1763102733563,0.26692612,96880.0,96867.0,0.024747]
[1763102733564,0.02418,96899.0,96876.0,0.02733]
[1763102733762,0.30961327,96896.0,96878.0,0.01527]
[1763102733964,0.27724603,96900.0,96876.0,0.01206]
[1763102733965,0.20642888,96886.0,96885.0,0.01527]
[1763102734170,0.20643957,96881.0,96876.0,0.03567]
[1763102734555,0.20644521,96878.0,96877.0,0.05788642]
[1763102734693,0.20644521,96878.0,96876.0,0.01206]
[1763102734896,0.20643773,96882.0,96876.0,0.01206]
[1763102735233,0.20642868,96886.0,96885.0,0.02733]
[1763102735234,0.24984691,96886.0,96885.0,0.02733]
[1763102735599,0.20644521,96878.0,96877.0,0.02361]
[1763102735800,0.20644521,96878.0,96876.0,0.01206]
[1763102736017,0.20644521,96878.0,96876.0,0.01306]
[1763102736420,0.20646653,96868.0,96867.0,0.000137]
[1763102736620,0.24988527,96868.0,96867.0,0.000137]
[1763102737078,0.26532527,96868.0,96867.0,0.000137]
[1763102737733,0.26532527,96868.0,96867.0,0.001137]
[1763102738355,0.23062948,96876.0,96850.0,0.003197]
[1763102738356,0.24992151,96851.0,96850.0,0.003197]
[1763102738571,0.24992151,96851.0,96850.0,0.02688721]
[1763102738772,0.20649566,96855.0,96850.0,0.02688721]
[1763102738954,0.00886,96883.0,96868.0,0.01206]
[1763102738955,0.24988314,96869.0,96868.0,0.01206]
[1763102739593,0.20645161,96875.0,96868.0,0.03567]
[1763102739740,0.04341874,96869.0,96868.0,0.03567]
[1763102739940,0.20644521,96878.0,96877.0,0.01527]
[1763102740153,0.20646073,96871.0,96868.0,0.01206]
[1763102740385,0.20647872,96863.0,96862.0,0.01206]
[1763102740594,0.20650277,96851.0,96850.0,0.00327721]
[1763102741563,0.20647059,96867.0,96850.0,0.00327721]
[1763102741564,0.5107,96889.0,96851.0,0.02361]
[1763102741764,0.20647718,96863.0,96862.0,0.01527]
[1763102741948,0.27724816,96880.0,96879.0,0.01206]
[1763102742176,0.24989379,96864.0,96863.0,0.01206]
[1763102742580,0.20649424,96855.0,96854.0,0.1006426]
[1763102742806,0.20650277,96851.0,96850.0,0.00527721]
[1763102742947,0.20650277,96851.0,96850.0,0.00427721]
[1763102743331,0.20649424,96855.0,96851.0,0.02361]
[1763102743332,0.04341874,96853.0,96851.0,0.02361]
[1763102743567,0.24991924,96853.0,96852.0,0.1006426]
[1763102744577,0.24991924,96853.0,96852.0,0.11470158]
[1763102745065,0.20649529,96855.0,96852.0,0.11470158]
[1763102745066,0.04341874,96864.0,96861.0,0.01527]
[1763102745259,0.20646367,96870.0,96861.0,0.01527]
[1763102745260,0.04341874,96862.0,96861.0,0.01527]
[1763102745687,0.20647165,96866.0,96853.0,0.1457]
[1763102745893,0.01032204,96880.0,96864.0,0.20647343]
[1763102746090,0.01032204,96880.0,96879.0,0.02733]
[1763102746294,0.26018386,96880.0,96879.0,0.01206]
[1763102747170,0.20649637,96854.0,96852.0,0.1006426]
[1763102747361,0.20649637,96854.0,96853.0,0.19451931]
[1763102747482,0.20649637,96854.0,96853.0,0.21812931]
[1763102747687,0.20649637,96854.0,96853.0,0.1457]
[1763102747883,0.24991511,96854.0,96853.0,0.1457]
[1763102748960,0.24991511,96854.0,96853.0,0.1467]
[1763102749128,0.42077211,96854.0,96853.0,0.001]
[1763102750156,2.05783851,96851.0,96850.0,8.021e-05]
[1763102750363,0.45158151,96851.0,96850.0,8.021e-05]
[1763102751327,0.24992151,96851.0,96850.0,8.021e-05]
[1763102751674,0.2064985,96853.0,96850.0,8.021e-05]
[1763102751867,0.001,96851.0,96850.0,0.02073992]
[1763102752061,0.001,96851.0,96850.0,0.22724482]
[1763102752261,0.001,96851.0,96850.0,0.02073992]
[1763102752800,0.001,96851.0,96850.0,8.021e-05]
[1763102753158,0.20650245,96852.0,96850.0,8.021e-05]
[1763102753360,0.20650245,96852.0,96851.0,0.1006426]
[1763102753612,0.20650245,96852.0,96851.0,0.1242526]
[1763102753813,0.20650245,96852.0,96851.0,0.1006426]
[1763102754013,0.20649643,96854.0,96851.0,0.11071488]
[1763102754218,0.20650064,96852.0,96851.0,0.11071488]
[1763102754658,0.20647718,96863.0,96860.0,0.01527]
[1763102754833,0.20648036,96862.0,96861.0,0.03567]
[1763102755236,0.20648036,96862.0,96861.0,0.01206]
[1763102756075,0.20645957,96872.0,96870.0,0.01527]
[1763102756214,0.20647932,96862.0,96861.0,0.01306]
[1763102756419,0.20647932,96862.0,96861.0,0.045666]
[1763102756835,0.20647932,96862.0,96861.0,0.046666]
[1763102757497,0.20647932,96862.0,96861.0,0.01306]
[1763102757903,0.20647932,96862.0,96861.0,0.01406]
[1763102758126,0.20647932,96862.0,96861.0,0.01306]
[1763102758368,0.20647932,96862.0,96861.0,0.01406]
[1763102758707,0.20647718,96863.0,96862.0,0.02361]
[1763102758909,0.20647718,96863.0,96862.0,0.041947]
[1763102759183,0.20647505,96864.0,96862.0,0.041947]
[1763102759366,0.20647505,96864.0,96863.0,0.02361]
[1763102760549,0.20647505,96864.0,96862.0,0.019337]
[1763102761007,0.24989806,96862.0,96861.0,0.01206]
[1763102761183,0.20650064,96852.0,96851.0,0.1006426]
[1763102761591,0.04341874,96851.0,96850.0,0.01193021]
[1763102761978,0.04341874,96851.0,96850.0,8.021e-05]
[1763102762178,0.04341874,96851.0,96850.0,0.01193021]
[1763102762747,0.04341874,96851.0,96850.0,8.021e-05]
[1763102762748,1.49188274,96851.0,96850.0,8.021e-05]
[1763102762899,1.0138034,96851.0,96850.0,8.021e-05]
[1763102763757,1.03282554,96851.0,96850.0,8.021e-05]
[1763102764096,1.03382554,96851.0,96850.0,8.021e-05]
[1763102764438,1.03582554,96851.0,96850.0,8.021e-05]
[1763102765914,1.10000464,96851.0,96850.0,8.021e-05]
[1763102766068,1.04532597,96851.0,96850.0,8.021e-05]
[1763102766271,1.10000464,96851.0,96850.0,8.021e-05]
[1763102766607,1.04532597,96851.0,96850.0,8.021e-05]
[1763102767028,1.04432597,96851.0,96850.0,8.021e-05]
[1763102767473,1.04632597,96851.0,96850.0,8.021e-05]
[1763102767614,1.10101756,96851.0,96850.0,8.021e-05]
[1763102767811,1.04632597,96851.0,96850.0,8.021e-05]
[1763102768017,1.10101756,96851.0,96850.0,8.021e-05]
[1763102768231,0.25002604,96802.0,96800.0,0.001]
[1763102768429,0.25002604,96802.0,96801.0,0.12250226]
[1763102768786,0.26556604,96802.0,96801.0,0.12250226]
[1763102769098,0.25002604,96802.0,96801.0,0.12250226]
[1763102769392,0.43740404,96802.0,96801.0,0.12250226]
[1763102769678,0.45294404,96802.0,96801.0,0.12250226]
[1763102769879,0.45294404,96802.0,96801.0,0.12350226]
[1763102770267,0.25002604,96802.0,96801.0,0.12250226]
[1763102770428,0.42807504,96802.0,96801.0,0.12250226]
[1763102770781,0.25002604,96802.0,96801.0,0.12350226]
[1763102770985,0.04341874,96802.0,96801.0,0.12250226]
[1763102771158,0.20660388,96804.0,96802.0,0.02256]
[1763102771360,0.20660388,96804.0,96803.0,0.1006426]
[1763102771937,0.20659166,96810.0,96804.0,0.02256]
[1763102772144,0.20657984,96815.0,96812.0,0.02815]
[1763102772349,0.20657802,96816.0,96814.0,0.01638]
[1763102772573,0.20657802,96816.0,96813.0,0.02256]
[1763102772773,0.20658169,96814.0,96813.0,0.02256]
[1763102773010,0.04341874,96815.0,96813.0,0.06731225]
[1763102773221,0.20657802,96816.0,96813.0,0.06731225]
[1763102773438,0.20657802,96816.0,96814.0,0.02256]
[1763102773637,0.20657605,96817.0,96814.0,0.02256]
[1763102773869,0.20658382,96813.0,96812.0,0.01177]
[1763102774277,0.20657742,96816.0,96812.0,0.01177]
[1763102774435,0.2065827,96814.0,96812.0,0.01177]
[1763102774628,0.20657742,96816.0,96812.0,0.01177]
[1763102774866,0.20657742,96816.0,96813.0,0.06505618]
[1763102775159,0.24997696,96825.0,96821.0,0.01638]
[1763102775392,0.24997909,96824.0,96823.0,0.1006426]
[1763102777154,0.20655822,96825.0,96812.0,0.01177]
[1763102777155,0.20658382,96813.0,96812.0,0.01177]
[1763102777535,0.20660303,96804.0,96800.0,0.001]
[1763102777741,0.26012604,96802.0,96800.0,0.001]
[1763102778121,0.27621604,96802.0,96800.0,0.001]
[1763102778298,0.25002604,96802.0,96800.0,0.001]
[1763102779479,0.26611604,96802.0,96800.0,0.001]
[1763102780407,2.12537704,96802.0,96800.0,0.001]
[1763102780852,2.12537704,96802.0,96801.0,0.09750226]
[1763102781061,2.12537704,96802.0,96722.0,0.09304667]
[1763102781062,0.20677605,96723.0,96722.0,0.09304667]
[1763102781268,0.20691292,96723.0,96722.0,0.09304667]
[1763102781483,0.00013687,96723.0,96722.0,0.09304667]
[1763102783256,0.00013687,96723.0,96722.0,0.09404667]
[1763102783461,0.00013687,96723.0,96722.0,0.29982485]
[1763102783654,0.00013687,96723.0,96722.0,0.08304667]
[1763102783855,0.00013687,96723.0,96722.0,0.08504667]
[1763102783976,0.04355561,96723.0,96722.0,0.08404667]
[1763102784337,0.04355561,96723.0,96722.0,0.08304667]
[1763102784560,0.25033166,96723.0,96722.0,0.08404667]
[1763102785295,2.14695166,96723.0,96722.0,0.08404667]
[1763102785506,2.14695166,96723.0,96722.0,0.08504667]
[1763102785705,2.14695166,96723.0,96722.0,0.08304667]
[1763102786180,1.59676766,96723.0,96722.0,0.08304667]
[1763102786563,1.59676766,96723.0,96722.0,0.09156169]
[1763102786761,1.59776766,96723.0,96722.0,0.08304667]
[1763102787097,0.85506866,96723.0,96722.0,0.08304667]
[1763102787726,0.90156266,96723.0,96722.0,0.08304667]
[1763102787950,0.57856266,96723.0,96722.0,0.08304667]
[1763102788087,0.37021866,96723.0,96722.0,0.08304667]
[1763102790762,0.25233166,96723.0,96722.0,0.08304667]
[1763102791345,2.20891292,96723.0,96722.0,0.00831667]
[1763102791544,0.70940992,96723.0,96722.0,0.00831667]
[1763102791876,0.75182866,96723.0,96722.0,0.00831667]
[1763102792078,0.75082866,96723.0,96722.0,0.00831667]
[1763102792517,0.72302566,96723.0,96722.0,0.00831667]
[1763102792711,0.25033166,96723.0,96722.0,0.00831667]
[1763102792914,0.36679766,96723.0,96722.0,0.00831667]
[1763102793037,0.64056266,96723.0,96722.0,0.00831667]
[1763102793244,0.55554866,96723.0,96722.0,0.00831667]
[1763102793680,0.36672366,96723.0,96722.0,0.00831667]
[1763102794444,0.36772366,96723.0,96722.0,0.00831667]
[1763102794663,0.69072366,96723.0,96722.0,0.00831667]
[1763102794886,0.68972366,96723.0,96722.0,0.00831667]
[1763102795326,2.57322044,96711.0,96710.0,0.00013305]
[1763102796178,2.57322044,96711.0,96695.0,0.13708678]
[1763102796179,2.57324183,96701.0,96695.0,0.13708678]
[1763102796737,0.80982983,96701.0,96700.0,0.24942803]
[1763102798317,0.81082983,96701.0,96700.0,0.24780903]
[1763102798528,0.81082983,96701.0,96695.0,0.13708678]
[1763102798529,2.57325252,96696.0,96695.0,0.13708678]
[1763102798730,2.57325252,96696.0,96633.0,0.005]
[1763102798731,0.21721355,96680.0,96643.0,0.08220152]
[1763102798936,0.21721355,96680.0,96610.0,0.00013337]
[1763102798937,0.20699648,96620.0,96610.0,0.00013337]
[1763102799144,0.02133,96621.0,96610.0,0.00013337]
[1763102799347,0.02133,96620.0,96612.0,0.02385]
[1763102799557,0.02133,96625.0,96612.0,0.00599024]
[1763102799768,0.02133,96614.0,96613.0,0.01129]
[1763102799973,0.40170921,96640.0,96610.0,0.00013337]
[1763102799974,0.02133,96613.0,96610.0,0.00013337]
[1763102800250,0.22834576,96611.0,96610.0,0.00013337]
[1763102800651,0.00013664,96625.0,96581.0,0.01129]
[1763102800652,0.20703719,96601.0,96595.0,0.1006426]
[1763102800862,0.02133,96610.0,96596.0,0.01872814]
[1763102801064,0.02133,96607.0,96604.0,0.01129]
[1763102801289,0.02133,96591.0,96590.0,0.08663884]
[1763102801476,0.22835433,96607.0,96606.0,0.01129]
[1763102802457,0.22849092,96607.0,96606.0,0.01129]
[1763102803095,0.22849092,96607.0,96606.0,0.01229]
[1763102803293,0.02146659,96607.0,96606.0,0.01229]
[1763102803978,0.02146659,96607.0,96606.0,0.01329]
[1763102804405,0.02146659,96607.0,96606.0,0.24234914]
[1763102804660,0.42421427,96650.0,96624.0,0.1006426]
[1763102804661,0.01034661,96650.0,96624.0,0.1006426]
[1763102804821,0.01034661,96650.0,96633.0,0.01129]
[1763102804822,0.01048406,96650.0,96633.0,0.01129]
[1763102805025,0.20695019,96642.0,96639.0,0.1006426]
[1763102805253,0.20706967,96650.0,96649.0,0.01613]
[1763102805457,0.00013745,96650.0,96649.0,0.01613]
[1763102805654,0.00013745,96650.0,96640.0,0.03742826]
[1763102805655,0.00013745,96650.0,96640.0,0.01357826]
[1763102806020,0.20691376,96659.0,96649.0,0.02742]
[1763102806222,0.20691376,96659.0,96658.0,0.1006426]
[1763102806353,0.20691376,96659.0,96658.0,0.1167726]
[1763102806552,0.20691082,96660.0,96659.0,0.02385]
[1763102806770,0.20690617,96663.0,96659.0,0.02385]
[1763102807014,0.20686801,96680.0,96679.0,0.01129]
[1763102808164,0.20700541,96680.0,96679.0,0.01129]
[1763102808360,0.20700541,96680.0,96679.0,0.01229]
[1763102808566,0.55050641,96680.0,96679.0,0.01229]
[1763102808768,0.59392515,96680.0,96679.0,0.001]
[1763102809043,0.91692515,96680.0,96679.0,0.001]
[1763102809390,0.91692515,96680.0,96629.0,0.1006426]
[1763102809391,0.20696649,96634.0,96629.0,0.1006426]
[1763102810638,0.01034554,96660.0,96633.0,0.02294008]
[1763102810856,0.20695521,96640.0,96633.0,0.02294008]
[1763102811059,0.51034554,96660.0,96659.0,0.01613]
[1763102811424,0.20691296,96660.0,96659.0,0.01129]
[1763102811628,0.20690594,96663.0,96659.0,0.01129]
[1763102811788,0.2068509,96688.0,96662.0,0.1006426]
[1763102811990,0.20689155,96669.0,96662.0,0.1006426]
[1763102812189,0.20690439,96663.0,96662.0,0.1006426]
[1763102812508,0.01034233,96690.0,96672.0,0.01613]
[1763102812757,0.20688085,96674.0,96672.0,0.01613]
[1763102812961,0.20688085,96674.0,96673.0,0.02385]
[1763102813163,0.20688085,96674.0,96672.0,0.01658682]
[1763102813164,2.15016685,96674.0,96672.0,0.00045682]
[1763102813317,2.129558,96673.0,96672.0,0.00045682]
[1763102813532,1.74786,96673.0,96672.0,0.00045682]
[1763102814033,1.79127874,96673.0,96672.0,0.00045682]
[1763102814565,1.81013648,96673.0,96672.0,0.00045682]
[1763102814705,1.81013646,96673.0,96672.0,0.00045682]
[1763102815297,1.83185975,96673.0,96672.0,0.00045682]
[1763102815503,0.20696649,96634.0,96618.0,0.02385]
[1763102815702,0.20696649,96634.0,96607.0,0.02385]
[1763102815703,0.20698362,96626.0,96607.0,0.02385]
[1763102815899,0.20702219,96608.0,96607.0,0.02385]
[1763102816105,0.20698073,96628.0,96605.0,0.01129]
[1763102816106,0.41397276,96625.0,96605.0,0.01129]
[1763102816308,0.20702433,96607.0,96605.0,0.01129]
[1763102816513,0.20702433,96607.0,96606.0,0.02385]
[1763102817182,0.20702433,96607.0,96605.0,0.01129]
[1763102817548,0.20702433,96607.0,96605.0,0.01229]
[1763102817801,0.20702433,96607.0,96606.0,0.001]
[1763102818003,0.20702433,96607.0,96606.0,0.02385]
[1763102819306,0.01034982,96620.0,96615.0,0.01613]
[1763102819502,0.20700505,96616.0,96615.0,0.01613]
[1763102820309,0.01034875,96630.0,96606.0,0.1006426]
[1763102820622,0.2069772,96629.0,96607.0,0.02491]
[1763102820825,0.20701955,96610.0,96607.0,0.02491]
[1763102822046,0.20701955,96610.0,96608.0,0.1006426]
[1763102822255,0.20701955,96610.0,96607.0,0.02491]
[1763102822461,0.20705005,96595.0,96594.0,0.01129]
[1763102822633,0.27861797,96620.0,96594.0,0.01129]
[1763102822845,0.20703076,96604.0,96603.0,0.01502]
[1763102823808,0.20748847,96604.0,96603.0,0.02491]
[1763102823957,0.00045771,96604.0,96603.0,0.02491]
[1763102824883,0.00045771,96604.0,96603.0,0.02591]
[1763102825081,0.00045771,96604.0,96603.0,0.02491]
[1763102825382,0.00045771,96604.0,96603.0,0.02591]
[1763102825582,0.00045771,96604.0,96603.0,0.02691]
[1763102826082,0.00045771,96604.0,96603.0,0.02591]
[1763102826507,0.00045771,96604.0,96603.0,0.002]
[1763102826911,0.00045771,96604.0,96603.0,0.02591]
[1763102827245,0.00045771,96604.0,96603.0,0.08150544]
[1763102827369,0.00045771,96604.0,96603.0,0.02591]
[1763102827570,0.00045771,96604.0,96603.0,0.001]
[1763102828282,0.00045771,96604.0,96603.0,0.002]
[1763102828578,0.00045771,96604.0,96603.0,0.001]
[1763102828937,0.00045771,96604.0,96603.0,0.002]
[1763102829349,0.20748847,96604.0,96603.0,0.002]
[1763102829560,0.00045771,96604.0,96603.0,0.002]
[1763102830272,0.00045771,96604.0,96603.0,0.05520437]
[1763102831780,0.00045771,96604.0,96603.0,0.002]
[1763102831989,0.50045771,96604.0,96603.0,0.002]
[1763102832796,0.50045771,96604.0,96603.0,0.001]
[1763102833022,0.20749061,96604.0,96597.0,0.1248826]
[1763102833227,0.20704099,96600.0,96598.0,0.02424]
[1763102833627,0.20704099,96600.0,96599.0,0.1006426]
[1763102834467,0.00045771,96604.0,96600.0,0.02424]
[1763102834617,0.2070329,96603.0,96602.0,0.1006426]
[1763102835233,0.2070329,96603.0,96602.0,0.10058493]
[1763102835650,0.20703719,96601.0,96600.0,0.001]
[1763102836015,0.20703719,96601.0,96599.0,0.02424]
[1763102837008,0.20703933,96600.0,96599.0,0.02424]
[1763102838598,0.20703933,96600.0,96599.0,0.02418196]
[1763102839127,0.20703933,96600.0,96599.0,0.02518196]
[1763102839330,0.20703933,96600.0,96599.0,0.001]
[1763102839331,0.36042933,96600.0,96599.0,0.001]
[1763102839532,0.20703933,96600.0,96599.0,0.002]
[1763102840304,0.20703933,96600.0,96599.0,0.001]
[1763102840711,0.20705005,96595.0,96594.0,0.01129]
[1763102841029,0.20705005,96595.0,96594.0,0.02463588]
[1763102841231,0.20705005,96595.0,96594.0,0.01120654]
[1763102842402,0.20705005,96595.0,96594.0,0.00870654]
[1763102843129,0.20705862,96591.0,96590.0,0.08663884]
[1763102843285,1.48290514,96591.0,96590.0,0.02195808]
[1763102843493,2.5734988,96581.0,96570.0,2.11052214]
[1763102843703,2.57352025,96571.0,96570.0,2.11052214]
[1763102843921,2.57352025,96571.0,96570.0,2.07942826]
[1763102843922,2.62386907,96571.0,96570.0,2.07942826]
[1763102844120,2.72992927,96571.0,96570.0,1.93628209]
[1763102844338,2.72992927,96571.0,96500.0,10.26445]
[1763102844339,0.95035072,96504.0,96500.0,10.26445]
[1763102844466,0.0053829,96542.0,96500.0,7.62436128]
[1763102844467,0.67772347,96501.0,96500.0,7.62436128]
[1763102844668,1.3706392,96501.0,96500.0,7.62436128]
[1763102844868,1.26704307,96501.0,96500.0,7.52030828]
[1763102845089,1.29821226,96501.0,96500.0,7.52030828]
[1763102845292,0.73315627,96501.0,96500.0,7.52030828]
[1763102845495,0.00045687,96501.0,96500.0,7.52030828]
[1763102845692,0.25154587,96501.0,96500.0,7.48917509]
[1763102845895,0.59341166,96501.0,96500.0,7.48917509]
[1763102846072,0.66987991,96501.0,96500.0,7.48917509]
[1763102846281,0.62646117,96501.0,96500.0,7.39485865]
[1763102846479,0.59341166,96501.0,96500.0,7.39485865]
[1763102846685,0.6368304,96501.0,96500.0,7.39485865]
[1763102847061,0.6388304,96501.0,96500.0,7.39485865]
[1763102847271,0.6388304,96501.0,96500.0,7.19279965]
[1763102847272,0.73939275,96501.0,96500.0,7.19279965]
[1763102847473,0.81935975,96501.0,96500.0,6.44423859]
[1763102847674,0.57765656,96501.0,96500.0,5.3313634]
[1763102847806,2.52130855,96501.0,96500.0,4.43886221]
[1763102848010,0.56899298,96501.0,96500.0,2.23666202]
[1763102848221,2.50792274,96501.0,96500.0,2.20552883]
[1763102848422,2.50974152,96501.0,96500.0,2.17438006]
[1763102848641,2.41409892,96501.0,96500.0,2.14323129]
[1763102848857,2.41409892,96501.0,96497.0,0.24325772]
[1763102848858,0.20725388,96500.0,96497.0,0.24325772]
[1763102849084,2.57367692,96498.0,96497.0,0.21210895]
[1763102849299,2.61590023,96498.0,96497.0,0.17992225]
[1763102849517,2.64396136,96498.0,96497.0,0.14377348]
[1763102849718,2.59245862,96498.0,96497.0,0.11262471]
[1763102849950,2.59245862,96498.0,96497.0,0.08147594]
[1763102850163,2.59245862,96498.0,96497.0,0.05032717]
[1763102850356,2.59245862,96498.0,96497.0,0.0191784]